fUST/lending_fUST_20240615
["ID","MTS","AMOUNT","RATE_DAILY","PERIOD"]
[329567575,1718446256216,-500.0,0.00016438,2]
[329567576,1718446256232,-500.0,0.00016438,2]
[329567577,1718446256250,-253.36116301,0.00016438,2]
[329567578,1718446256280,-502.47293819,0.00016438,2]
[329567579,1718446256305,-500.0,0.00016438,2]
[329567580,1718446256330,-500.0,0.00016438,2]
[329567581,1718446256342,-500.0,0.00016438,2]
[329567582,1718446256358,-228.95400368,0.00016438,2]
[329567583,1718446256372,-500.0,0.00016438,2]
[329567584,1718446256386,-500.0,0.00016438,2]
[329567585,1718446256407,-500.0,0.00016438,2]
[329567586,1718446256438,-7450.38,0.00016438,2]
[329567587,1718446256452,-500.0,0.00016438,2]
[329567588,1718446256465,-500.0,0.00016438,2]
[329567589,1718446256478,-4982.15,0.00016438,2]
[329567590,1718446256496,-500.0,0.00016438,2]
[329567591,1718446256515,-611.42503127,0.00016438,2]
[329567592,1718446256538,-500.0,0.00016438,2]
[329567593,1718446256566,-500.0,0.00016438,2]
[329567594,1718446256591,-500.0,0.00016438,2]
[329567595,1718446256610,-500.0,0.00016438,2]
[329567596,1718446256636,-500.0,0.00016438,2]
[329567597,1718446256650,-500.0,0.00016438,2]
[329567598,1718446256671,-500.0,0.00016438,2]
[329567599,1718446256684,-500.0,0.00016438,2]
[329567600,1718446256696,-500.0,0.00016438,2]
[329567601,1718446256707,-500.0,0.00016438,2]
[329567602,1718446256722,-500.0,0.00016438,2]
[329567603,1718446256733,-500.0,0.00016438,2]
[329567604,1718446256745,-500.0,0.00016438,2]
[329567605,1718446256774,-500.0,0.00016438,2]
[329567606,1718446256788,-500.0,0.00016438,2]
[329567607,1718446256817,-500.0,0.00016438,2]
[329567608,1718446256837,-500.0,0.00016438,2]
[329567609,1718446256854,-500.0,0.00016438,2]
[329567610,1718446256890,-500.0,0.00016438,2]
[329567611,1718446256924,-500.0,0.00016438,2]
[329567612,1718446256938,-500.0,0.00016438,2]
[329567613,1718446256952,-500.0,0.00016438,2]
[329567614,1718446256986,-500.0,0.00016438,2]
[329567615,1718446256999,-500.0,0.00016438,2]
[329567616,1718446257023,-500.0,0.00016438,2]
[329567617,1718446257038,-500.0,0.00016438,2]
[329567618,1718446257059,-500.46600613,0.00016438,2]
[329567619,1718446257070,-1399.15,0.00016438,2]
[329567620,1718446257081,-500.63864435,0.00016438,2]
[329567621,1718446257105,-3616.43,0.00016438,2]
[329567622,1718446257120,-556.21509564,0.00016438,2]
[329567623,1718446257132,-500.0,0.00016438,2]
[329567624,1718446257142,-500.0,0.00016438,2]
[329567625,1718446257155,-2374.35,0.00016438,2]
[329567626,1718446257167,-500.0,0.00016438,2]
[329567627,1718446257183,-500.0,0.00016438,2]
[329567628,1718446257195,-500.0,0.00016438,2]
[329567629,1718446257218,-2181.03,0.00016438,2]
[329567630,1718446257243,-793.5,0.00016438,2]
[329567631,1718446257271,-500.0,0.00016438,2]
[329567632,1718446257290,-500.0,0.00016438,2]
[329567633,1718446257311,-489.59314257,0.00016438,2]
[329567634,1718446257325,-500.78690035,0.00016438,2]
[329567635,1718446257352,-500.0,0.00016438,2]
[329567636,1718446257367,-500.0,0.00016438,2]
[329567637,1718446257386,-155.01085076,0.00016438,2]
[329567638,1718446257422,-500.0,0.00016438,2]
[329567639,1718446257436,-500.0,0.00016438,2]
[329567640,1718446257457,-500.0,0.00016438,2]
[329567641,1718446257473,-151.0,0.00016438,2]
[329567642,1718446257484,-501.70643151,0.00016438,2]
[329567643,1718446257494,-673.72,0.00016438,2]
[329567644,1718446257505,-151.0,0.00016438,2]
[329567645,1718446257516,-502.36202619,0.00016438,2]
[329567646,1718446257528,-151.0,0.00016438,2]
[329567647,1718446257541,-151.0,0.00016438,2]
[329567648,1718446257558,-500.0,0.00016438,2]
[329567649,1718446257575,-500.0,0.00016438,2]
[329567650,1718446257586,-500.0,0.00016438,2]
[329567651,1718446257599,-500.0,0.00016438,2]
[329567652,1718446257613,-151.0,0.00016438,2]
[329567653,1718446257625,-151.0,0.00016438,2]
[329567654,1718446257654,-151.0,0.00016438,2]
[329567655,1718446257676,-151.0,0.00016438,2]
[329567656,1718446257697,-500.0,0.00016438,2]
[329567657,1718446257729,-151.0,0.00016438,2]
[329567658,1718446257767,-500.0,0.00016438,2]
[329567659,1718446257778,-151.0,0.00016438,2]
[329567660,1718446257788,-500.0,0.00016438,2]
[329567661,1718446257816,-500.0,0.00016438,2]
[329567662,1718446257830,-500.0,0.00016438,2]
[329567663,1718446257843,-151.0,0.00016438,2]
[329567664,1718446257865,-500.0,0.00016438,2]
[329567665,1718446257877,-627.34,0.00016438,2]
[329567666,1718446257895,-500.0,0.00016438,2]
[329567667,1718446257909,-500.0,0.00016438,2]
[329567668,1718446257926,-500.0,0.00016438,2]
[329567669,1718446257940,-500.0,0.00016438,2]
[329567670,1718446257955,-500.0,0.00016438,2]
[329567671,1718446257966,-500.0,0.00016438,2]
[329567672,1718446257980,-500.0,0.00016438,2]
[329567673,1718446257997,-500.0,0.00016438,2]
[329567674,1718446258011,-500.0,0.00016438,2]
[329567675,1718446258033,-500.0,0.00016438,2]
[329567676,1718446258046,-500.0,0.00016438,2]
[329567677,1718446258057,-500.0,0.00016438,2]
[329567678,1718446258074,-5271.99,0.00016438,2]
[329567679,1718446258087,-264.73838059,0.00016438,2]
[329567680,1718446258101,-500.0,0.00016438,2]
[329567681,1718446258115,-500.0,0.00016438,2]
[329567682,1718446258135,-500.0,0.00016438,2]
[329567683,1718446258156,-500.0,0.00016438,2]
[329567684,1718446258169,-500.0,0.00016438,2]
[329567685,1718446258186,-502.28606211,0.00016438,2]
[329567686,1718446258197,-517.455171,0.00016438,2]
[329567687,1718446258221,-500.0,0.00016438,2]
[329567688,1718446258250,-500.0,0.00016438,2]
[329567689,1718446258265,-500.0,0.00016438,2]
[329567690,1718446258282,-500.0,0.00016438,2]
[329567691,1718446258316,-505.68285215,0.00016438,2]
[329567692,1718446258342,-500.0,0.00016438,2]
[329567693,1718446258355,-500.0,0.00016438,2]
[329567694,1718446258390,-500.0,0.00016438,2]
[329567695,1718446258428,-500.0,0.00016438,2]
[329567696,1718446258447,-500.0,0.00016438,2]
[329567697,1718446258466,-541.77410837,0.00016438,2]
[329567698,1718446258483,-500.0,0.00016438,2]
[329567699,1718446258502,-500.0,0.00016438,2]
[329567700,1718446258602,-500.0,0.00016438,2]
[329567701,1718446258615,-500.0,0.00016438,2]
[329567702,1718446258629,-500.0,0.00016438,2]
[329567703,1718446258645,-500.0,0.00016438,2]
[329567704,1718446258656,-500.0,0.00016438,2]
[329567705,1718446258677,-583.92,0.00016438,2]
[329567706,1718446258688,-539.5685236,0.00016438,2]
[329567707,1718446258716,-500.0,0.00016438,2]
[329567708,1718446258734,-613.09066034,0.00016438,2]
[329567709,1718446258746,-500.0,0.00016438,2]
[329567710,1718446258758,-1761.17,0.00016438,2]
[329567711,1718446258774,-500.0,0.00016438,2]
[329567712,1718446258788,-500.0,0.00016438,2]
[329567713,1718446258800,-503.28348571,0.00016438,2]
[329567714,1718446258828,-318.97556066,0.00016438,2]
[329567715,1718446258849,-150.70352085,0.00016438,2]
[329567716,1718446258866,-500.0,0.00016438,2]
[329567717,1718446258900,-502.91068675,0.00016438,2]
[329567718,1718446258917,-633.26196283,0.00016438,2]
[329567719,1718446258928,-500.0,0.00016438,2]
[329567720,1718446258962,-500.0,0.00016438,2]
[329567721,1718446258983,-500.0,0.00016438,2]
[329567722,1718446259012,-500.0,0.00016438,2]
[329567723,1718446259033,-1972.45,0.00016438,2]
[329567724,1718446259057,-500.0,0.00016438,2]
[329567725,1718446259077,-500.0,0.00016438,2]
[329567726,1718446259088,-500.0,0.00016438,2]
[329567727,1718446259102,-500.0,0.00016438,2]
[329567728,1718446259119,-1213.68,0.00016438,2]
[329567729,1718446259132,-500.0,0.00016438,2]
[329567730,1718446259185,-500.0,0.00016438,2]
[329567731,1718446259207,-500.0,0.00016438,2]
[329567732,1718446259225,-500.0,0.00016438,2]
[329567733,1718446259244,-500.0,0.00016438,2]
[329567734,1718446259300,-500.0,0.00016438,2]
[329567735,1718446259323,-827.13,0.00016438,2]
[329567736,1718446259350,-827.13,0.00016438,2]
[329567737,1718446259375,-827.13,0.00016438,2]
[329567738,1718446259398,-827.13,0.00016438,2]
[329567739,1718446259431,-827.13,0.00016438,2]
[329567740,1718446259458,-827.13,0.00016438,2]
[329567741,1718446259469,-1760.94,0.00016438,2]
[329567742,1718446259481,-827.13,0.00016438,2]
[329567743,1718446259516,-1760.94,0.00016438,2]
[329567744,1718446259527,-501.82755419,0.00016438,2]
[329567745,1718446259539,-827.13,0.00016438,2]
[329567746,1718446259562,-1760.94,0.00016438,2]
[329567747,1718446259573,-500.0,0.00016438,2]
[329567748,1718446259585,-827.13,0.00016438,2]
[329567749,1718446259598,-827.13,0.00016438,2]
[329567750,1718446259616,-1760.94,0.00016438,2]
[329567751,1718446259636,-1760.94,0.00016438,2]
[329567752,1718446259653,-827.13,0.00016438,2]
[329567753,1718446259673,-500.0,0.00016438,2]
[329567754,1718446259705,-1760.94,0.00016438,2]
[329567755,1718446259734,-827.13,0.00016438,2]
[329567756,1718446259748,-827.13,0.00016438,2]
[329567757,1718446259759,-827.13,0.00016438,2]
[329567758,1718446259770,-827.13,0.00016438,2]
[329567759,1718446259784,-827.13,0.00016438,2]
[329567760,1718446259806,-827.13,0.00016438,2]
[329567761,1718446259819,-500.0,0.00016438,2]
[329567762,1718446259830,-1760.94,0.00016438,2]
[329567763,1718446259843,-1760.94,0.00016438,2]
[329567764,1718446259855,-827.13,0.00016438,2]
[329567765,1718446259868,-1760.94,0.00016438,2]
[329567766,1718446259884,-1760.94,0.00016438,2]
[329567767,1718446259906,-1760.94,0.00016438,2]
[329567768,1718446259922,-1760.94,0.00016438,2]
[329567769,1718446259935,-1760.94,0.00016438,2]
[329567770,1718446259948,-501.27980845,0.00016438,2]
[329567771,1718446259972,-1760.94,0.00016438,2]
[329567772,1718446259989,-500.0,0.00016438,2]
[329567773,1718446260003,-500.0,0.00016438,2]
[329567774,1718446260033,-1760.94,0.00016438,2]
[329567775,1718446260045,-500.0,0.00016438,2]
[329567776,1718446260061,-1760.94,0.00016438,2]
[329567777,1718446260072,-1760.94,0.00016438,2]
[329567778,1718446260084,-1760.94,0.00016438,2]
[329567779,1718446260099,-1760.94,0.00016438,2]
[329567780,1718446260111,-1760.94,0.00016438,2]
[329567781,1718446260123,-401.55424573,0.00016438,2]
[329567782,1718446260135,-1760.94,0.00016438,2]
[329567783,1718446260147,-1760.94,0.00016438,2]
[329567784,1718446260172,-1760.94,0.00016438,2]
[329567785,1718446260184,-1761.07818668,0.00016438,2]
[329567786,1718446260202,-506.55207471,0.00016438,2]
[329567787,1718446260213,-500.0,0.00016438,2]
[329567788,1718446260229,-500.0,0.00016438,2]
[329567789,1718446260245,-151.0,0.00016438,2]
[329567790,1718446260258,-504.40772147,0.00016438,2]
[329567791,1718446260273,-151.0,0.00016438,2]
[329567792,1718446260295,-501.10227725,0.00016438,2]
[329567793,1718446260326,-500.0,0.00016438,2]
[329567794,1718446260352,-500.0,0.00016438,2]
[329567795,1718446260369,-563.73,0.00016438,2]
[329567796,1718446260380,-1691.07,0.00016438,2]
[329567797,1718446260392,-151.0,0.00016438,2]
[329567798,1718446260411,-151.0,0.00016438,2]
[329567799,1718446260428,-151.0,0.00016438,2]
[329567800,1718446260448,-151.0,0.00016438,2]
[329567801,1718446260473,-151.0,0.00016438,2]
[329567802,1718446260484,-151.0,0.00016438,2]
[329567803,1718446260499,-151.0,0.00016438,2]
[329567804,1718446260511,-151.0,0.00016438,2]
[329567805,1718446260523,-151.0,0.00016438,2]
[329567806,1718446260536,-151.0,0.00016438,2]
[329567807,1718446260558,-151.0,0.00016438,2]
[329567808,1718446260583,-151.0,0.00016438,2]
[329567809,1718446260595,-151.0,0.00016438,2]
[329567810,1718446260607,-151.0,0.00016438,2]
[329567811,1718446260629,-211.401612,0.00016438,2]
[329567812,1718446260643,-155.0,0.0001648,2]
[329567813,1718446260660,-500.0,0.00016499,2]
[329567814,1718446260689,-500.0,0.00016499,2]
[329567815,1718446260720,-973.29236399,0.000165,2]
[329567816,1718446260761,-500.0,0.000165,2]
[329567817,1718446260773,-2045.2,0.0001652,2]
[329567818,1718446260787,-500.0,0.00016711,2]
[329567819,1718446260809,-578.15645293,0.00016711,2]
[329567820,1718446260836,-500.0,0.00016711,2]
[329567821,1718446260850,-500.0,0.00016711,2]
[329567822,1718446260864,-500.0,0.00016711,2]
[329567823,1718446260877,-500.0,0.00016711,2]
[329567824,1718446260896,-500.0,0.00016711,2]
[329567825,1718446260910,-500.0,0.00016711,2]
[329567826,1718446260930,-325.11946222,0.00016711,2]
[329567827,1718446260951,-827.13,0.00016711,2]
[329567828,1718446260966,-827.13,0.00016711,2]
[329567829,1718446260978,-827.13,0.00016711,2]
[329567830,1718446260990,-827.13,0.00016711,2]
[329567831,1718446261002,-827.13,0.00016711,2]
[329567832,1718446261015,-827.35395839,0.00016711,2]
[329567833,1718446261029,-500.0,0.00016712,2]
[329567834,1718446261054,-507.02,0.00016712,2]
[329567835,1718446261078,-500.0,0.00016712,2]
[329567836,1718446261089,-500.0,0.00016712,2]
[329567837,1718446261106,-526.30040274,0.00016712,2]
[329567838,1718446261125,-500.0,0.00016712,2]
[329567839,1718446261155,-500.0,0.00016712,2]
[329567840,1718446261180,-500.0,0.00016712,2]
[329567841,1718446261193,-626.2902236,0.00016712,2]
[329567842,1718446261216,-500.0,0.00016712,2]
[329567843,1718446261237,-500.69798611,0.00016712,2]
[329567844,1718446261255,-505.51698082,0.00016712,2]
[329567845,1718446261266,-500.0,0.00016712,2]
[329567846,1718446261296,-419.98850811,0.00016712,2]
[329567847,1718446261316,-503.28065669,0.00016712,2]
[329567848,1718446261332,-501.3413639,0.00016712,2]
[329567849,1718446261368,-500.0,0.00016712,2]
[329567850,1718446261382,-500.0,0.00016712,2]
[329567851,1718446261423,-505.23907069,0.00016712,2]
[329567852,1718446261462,-500.0,0.00016712,2]
[329567853,1718446261476,-500.0,0.00016712,2]
[329567854,1718446261491,-500.0,0.00016712,2]
[329567855,1718446261512,-501.83374599,0.00016712,2]
[329567856,1718446261524,-502.25446226,0.00016712,2]
[329567857,1718446261536,-500.0,0.00016712,2]
[329567858,1718446261556,-182.67897908,0.00016712,2]
[329567859,1718446261580,-168.88888071,0.00016712,2]
[329567860,1718446261593,-500.0,0.00016712,2]
[329567861,1718446261609,-500.0,0.00016712,2]
[329567862,1718446261640,-500.0,0.00016712,2]
[329567863,1718446261702,-500.0,0.00016712,2]
[329567864,1718446261717,-500.0,0.00016712,2]
[329567865,1718446261731,-500.0,0.00016712,2]
[329567866,1718446261742,-500.0,0.00016712,2]
[329567867,1718446261769,-500.0,0.00016712,2]
[329567868,1718446261797,-500.0,0.00016712,2]
[329567869,1718446261824,-500.0,0.00016712,2]
[329567870,1718446261862,-500.0,0.00016712,2]
[329567871,1718446261887,-500.0,0.00016712,2]
[329567872,1718446261944,-500.0,0.00016712,2]
[329567873,1718446261956,-500.0,0.00016712,2]
[329567874,1718446261975,-263.84516495,0.00016712,2]
[329567875,1718446262033,-502.6789397,0.00016712,2]
[329567876,1718446262048,-643.77159677,0.00016712,2]
[329567877,1718446262083,-500.0,0.00016712,2]
[329567878,1718446262109,-500.0,0.00016712,2]
[329567879,1718446262140,-594.72061703,0.00016712,2]
[329567880,1718446262169,-500.0,0.00016712,2]
[329567881,1718446262194,-463.34199759,0.00016712,2]
[329567882,1718446262228,-530.71418767,0.00016712,2]
[329567883,1718446262249,-500.0,0.00016712,2]
[329567884,1718446262273,-250.0,0.00016712,2]
[329567885,1718446262319,-513.79696058,0.00016712,2]
[329567886,1718446262340,-500.0,0.00016712,2]
[329567887,1718446262373,-500.0,0.00016712,2]
[329567888,1718446262387,-500.0,0.00016712,2]
[329567889,1718446262420,-500.0,0.00016712,2]
[329567890,1718446262449,-502.38592744,0.00016712,2]
[329567891,1718446262587,-500.0,0.00016712,2]
[329567892,1718446262600,-509.99183791,0.00016712,2]
[329567893,1718446262615,-500.0,0.00016712,2]
[329567894,1718446262627,-500.0,0.00016712,2]
[329567895,1718446262640,-502.89719724,0.00016712,2]
[329567896,1718446262658,-500.0,0.00016712,2]
[329567897,1718446262684,-500.0,0.00016712,2]
[329567898,1718446262699,-500.0,0.00016712,2]
[329567899,1718446262710,-500.0,0.00016712,2]
[329567900,1718446262726,-438.18485266,0.00016712,2]
[329567901,1718446262738,-500.0,0.00016712,2]
[329567902,1718446262759,-475.93274446,0.00016712,2]
[329567903,1718446262788,-500.0,0.00016712,2]
[329567904,1718446262800,-517.29434699,0.00016712,2]
[329567905,1718446262816,-500.0,0.00016712,2]
[329567906,1718446262836,-500.0,0.00016712,2]
[329567907,1718446262855,-500.0,0.00016712,2]
[329567908,1718446262866,-500.0,0.00016712,2]
[329567909,1718446262879,-500.0,0.00016712,2]
[329567910,1718446262894,-500.0,0.00016712,2]
[329567911,1718446262909,-501.89141202,0.00016712,2]
[329567912,1718446262920,-500.0,0.00016712,2]
[329567913,1718446262938,-500.0,0.00016712,2]
[329567914,1718446262952,-500.66467378,0.00016712,2]
[329567915,1718446262966,-500.0,0.00016712,2]
[329567916,1718446262983,-500.0,0.00016712,2]
[329567917,1718446263031,-500.0,0.00016712,2]
[329567918,1718446263043,-500.0,0.00016712,2]
[329567919,1718446263055,-648.40478789,0.00016712,2]
[329567920,1718446263067,-500.0,0.00016712,2]
[329567921,1718446263098,-500.0,0.00016712,2]
[329567922,1718446263130,-500.0,0.00016712,2]
[329567923,1718446263150,-500.0,0.00016712,2]
[329567924,1718446263176,-500.0,0.00016712,2]
[329567925,1718446263204,-500.0,0.00016712,2]
[329567926,1718446263229,-626.06,0.00016712,2]
[329567927,1718446263254,-500.0,0.00016712,2]
[329567928,1718446263264,-500.0,0.00016712,2]
[329567929,1718446263277,-500.0,0.00016712,2]
[329567930,1718446263287,-500.0,0.00016712,2]
[329567931,1718446263302,-500.0,0.00016712,2]
[329567932,1718446263315,-500.0,0.00016712,2]
[329567933,1718446263334,-500.0,0.00016712,2]
[329567934,1718446263347,-500.0,0.00016712,2]
[329567935,1718446263378,-500.0,0.00016712,2]
[329567936,1718446263392,-500.0,0.00016712,2]
[329567937,1718446263404,-525.13820671,0.00016712,2]
[329567938,1718446263423,-500.0,0.00016712,2]
[329567939,1718446263440,-500.0,0.00016712,2]
[329567940,1718446263451,-500.0,0.00016712,2]
[329567941,1718446263482,-500.0,0.00016712,2]
[329567942,1718446263508,-500.0,0.00016712,2]
[329567943,1718446263540,-440.14971195,0.00016712,2]
[329567944,1718446263551,-500.0,0.00016712,2]
[329567945,1718446263563,-500.0,0.00016712,2]
[329567946,1718446263588,-500.0,0.00016712,2]
[329567947,1718446263600,-608.02752242,0.00016712,2]
[329567948,1718446263615,-500.0,0.00016712,2]
[329567949,1718446263628,-500.0,0.00016712,2]
[329567950,1718446263642,-599.78,0.00016712,2]
[329567951,1718446263653,-500.0,0.00016712,2]
[329567952,1718446263664,-500.0,0.00016712,2]
[329567953,1718446263679,-614.8642671,0.00016712,2]
[329567954,1718446263692,-500.0,0.00016712,2]
[329567955,1718446263704,-630.55948892,0.00016712,2]
[329567956,1718446263715,-500.0,0.00016712,2]
[329567957,1718446263727,-500.0,0.00016712,2]
[329567958,1718446263741,-500.0,0.00016712,2]
[329567959,1718446263778,-244.54413123,0.00016712,2]
[329567960,1718446263799,-500.0,0.00016712,2]
[329567961,1718446263845,-500.0,0.00016712,2]
[329567962,1718446263870,-154.92665267,0.00016712,2]
[329567963,1718446263902,-500.0,0.00016712,2]
[329567964,1718446263925,-282.54254845,0.00016712,2]
[329567965,1718446263943,-503.77443766,0.00016712,2]
[329567966,1718446263965,-507.55625995,0.00016712,2]
[329567967,1718446263979,-505.59,0.00016712,2]
[329567968,1718446263999,-500.0,0.00016712,2]
[329567969,1718446264013,-506.8752513,0.00016712,2]
[329567970,1718446264031,-500.0,0.00016712,2]
[329567971,1718446264049,-500.0,0.00016712,2]
[329567972,1718446264064,-500.0,0.00016712,2]
[329567973,1718446264080,-500.0,0.00016712,2]
[329567974,1718446264092,-500.0,0.00016712,2]
[329567975,1718446264109,-500.0,0.00016712,2]
[329567976,1718446264120,-500.0,0.00016712,2]
[329567977,1718446264138,-1083.86,0.00016712,2]
[329567978,1718446264151,-504.79141549,0.00016712,2]
[329567979,1718446264165,-500.0,0.00016712,2]
[329567980,1718446264183,-500.0,0.00016712,2]
[329567981,1718446264208,-500.0,0.00016712,2]
[329567982,1718446264223,-500.0,0.00016712,2]
[329567983,1718446264241,-500.0,0.00016712,2]
[329567984,1718446264278,-500.0,0.00016712,2]
[329567985,1718446264305,-500.0,0.00016712,2]
[329567986,1718446264326,-500.0,0.00016712,2]
[329567987,1718446264341,-418.643906,0.00016712,2]
[329567988,1718446264359,-500.0,0.00016712,2]
[329567989,1718446264378,-500.0,0.00016712,2]
[329567990,1718446264396,-500.0,0.00016712,2]
[329567991,1718446264419,-500.0,0.00016712,2]
[329567992,1718446264441,-500.0,0.00016712,2]
[329567993,1718446264460,-500.0,0.00016712,2]
[329567994,1718446264478,-618.30452941,0.00016712,2]
[329567995,1718446264494,-500.0,0.00016712,2]
[329567996,1718446264525,-500.0,0.00016712,2]
[329567997,1718446264542,-500.0,0.00016712,2]
[329567998,1718446264564,-500.0,0.00016712,2]
[329567999,1718446264613,-114.28384509,0.00016712,2]
[329568000,1718446264851,-385.71615491,0.00016712,2]
[329568001,1718446264867,-500.0,0.00016712,2]
[329568002,1718446264883,-500.0,0.00016712,2]
[329568003,1718446264906,-500.0,0.00016712,2]
[329568004,1718446264932,-720.7,0.00016712,2]
[329568005,1718446264955,-500.0,0.00016712,2]
[329568006,1718446264970,-500.0,0.00016712,2]
[329568007,1718446264986,-377.48384509,0.00016712,2]
[329568008,1718446265032,-481.70615491,0.00016712,2]
[329568009,1718446265055,-500.0,0.00016712,2]
[329568010,1718446265090,-500.0,0.00016712,2]
[329568011,1718446265104,-500.0,0.00016712,2]
[329568012,1718446265119,-500.0,0.00016712,2]
[329568013,1718446265134,-500.0,0.00016712,2]
[329568014,1718446265149,-512.19234643,0.00016712,2]
[329568015,1718446265161,-500.0,0.00016712,2]
[329568016,1718446265180,-500.0,0.00016712,2]
[329568017,1718446265193,-500.0,0.00016712,2]
[329568018,1718446265210,-500.0,0.00016712,2]
[329568019,1718446265222,-500.0,0.00016712,2]
[329568020,1718446265235,-425.03446333,0.00016712,2]
[329568021,1718446266379,-500.0,0.00016438,2]
[329568022,1718446266406,-74.96553667,0.00016712,2]
[329568023,1718446266426,-547.95381113,0.00016712,2]
[329568024,1718446266437,-500.0,0.00016712,2]
[329568025,1718446266456,-500.0,0.00016712,2]
[329568026,1718446266484,-1245.37551848,0.00016712,2]
[329568027,1718446266681,-830.6395,0.00016712,2]
[329568028,1718446266701,-422.22153081,0.00016712,2]
[329568044,1718446685472,1682.30574912,9.999e-05,2]
[329568045,1718446688109,225.31765911,9.999e-05,2]
[329568046,1718446688397,1519.06342442,9.999e-05,2]
[329568052,1718446801426,155.02170304,9.999e-05,2]
[329568053,1718446830273,155.01550155,9.999e-05,2]
[329568054,1718446957673,10000.0,0.0002475,120]
[329568105,1718446976885,1747.66,0.00025,60]
[329568106,1718447144189,3792.77260602,0.0002,30]
[329568107,1718447144389,1548.33096222,0.0002,30]
[329568108,1718447146171,754.55846171,0.0002,30]
[329568111,1718447338094,-508.0387911,0.00011023,2]
[329568112,1718447338137,-27.59281934,0.00011887,2]
[329568113,1718447338211,-638.25174369,0.00011022,2]
[329568114,1718447338819,8448.04712548,0.00023,30]
[329568118,1718447363077,-188.0019172,0.00010886,2]
[329568120,1718447363131,-473.72749357,0.00011021,2]
[329568123,1718447363181,-509.94386712,0.00011021,2]
[329568124,1718447388125,-685.16287633,0.0001102,2]
[329568125,1718447388180,-667.09283732,0.0001102,2]
[329568205,1718447434475,-155.01550155,0.00011017,2]
[329568207,1718447434494,-2320.73387402,0.00011019,2]
[329568220,1718447440966,-644.31600275,0.00011019,2]
[329568221,1718447440993,-643.33765541,0.00011019,2]
[329568223,1718447441050,-506.48176332,0.00011019,2]
[329568256,1718447445264,-10550.13158687,0.00011018,2]
[329568258,1718447445291,-59.84280756,0.00011019,2]
[329568259,1718447445343,-20736.41747211,0.00011019,2]
[329568260,1718447445420,-16723.1265786,0.00011019,2]
[329568261,1718447445441,-5027.26776326,0.00011019,2]
[329568262,1718447445459,-300.0,0.0001102,2]
[329568263,1718447445471,-300.0,0.0001102,2]
[329568264,1718447445497,-11105.83397635,0.00011884,2]
[329568265,1718447445510,-7924.74626995,0.00011885,2]
[329568266,1718447445560,-2644.59354839,0.00011885,2]
[329568267,1718447445573,-24900.0,0.00011892,2]
[329568268,1718447445584,-420.0,0.0001211,2]
[329568269,1718447445603,-420.0,0.00012123,2]
[329568270,1718447445618,-250.0,0.00012422,2]
[329568271,1718447445633,-201.1846535,0.00012895,2]
[329568272,1718447445646,-227.0,0.00013307,2]
[329568273,1718447445658,-2132.83284656,0.00013397,2]
[329568274,1718447445670,-286.16704626,0.00013692,2]
[329568275,1718447445702,-78.52789693,0.00013699,2]
[329568276,1718447445768,-2921.47210307,0.00013699,2]
[329568277,1718447445790,-434.987031,0.00013699,2]
[329568278,1718447445830,-2132.83284652,0.00013773,2]